[Event "The Kvibergspelen 2024"]
[Site "Kviberg Park Hotel & Conference, Krutvagen 2, Gothenburg, Sweden"]
[Date "2024.09.08"]
[Round "7.19"]
[White "Bengtsson, Siv"]
[Black "Kleist, Axel"]
[Result "1-0"]
[TimeControl "15 minutes + 5 seconds per move from move one (Round 1 - 4) / 90 minutes + 30 seconds per move from move one (Round 5 - 8)"]
[WhiteFideId "1701673"]
[BlackFideId "1764322"]
[WhiteElo "1972"]
[BlackElo "1855"]

1. e4 {[%clk 01:30:52]} {[%emt 00:00:08]} c5 {[%clk 01:30:57]} {[%emt
00:00:04]} 2. Nf3 {[%clk 01:31:18]} {[%emt 00:00:03]} d6 {[%clk 01:31:26]}
{[%emt 00:00:02]} 3. d4 {[%clk 01:31:42]} {[%emt 00:00:06]} cxd4 {[%clk
01:31:53]} {[%emt 00:00:02]} 4. Nxd4 {[%clk 01:32:06]} {[%emt 00:00:06]} Nf6
{[%clk 01:32:15]} {[%emt 00:00:07]} 5. Nc3 {[%clk 01:32:30]} {[%emt 00:00:06]}
g6 {[%clk 01:32:37]} {[%emt 00:00:09]} 6. Be3 {[%clk 01:32:25]} {[%emt
00:00:34]} Nc6 {[%clk 01:33:00]} {[%emt 00:00:07]} 7. f3 {[%clk 01:32:00]}
{[%emt 00:00:55]} h5 {[%clk 01:33:26]} {[%emt 00:00:04]} 8. Qd2 {[%clk
01:30:10]} {[%emt 00:02:21]} Nxd4 {[%clk 01:33:50]} {[%emt 00:00:07]} 9. Bxd4
{[%clk 01:28:37]} {[%emt 00:02:01]} Bh6 {[%clk 01:34:16]} {[%emt 00:00:04]} 10.
Qf2 {[%clk 01:23:46]} {[%emt 00:05:21]} O-O {[%clk 01:33:25]} {[%emt 00:01:21]}
11. Rd1 {[%clk 01:16:35]} {[%emt 00:07:41]} Qa5 {[%clk 01:31:56]} {[%emt
00:01:59]} 12. Bc4 {[%clk 01:11:12]} {[%emt 00:05:53]} b5 {[%clk 01:23:55]}
{[%emt 00:08:33]} 13. Bxf6 {[%clk 01:06:01]} {[%emt 00:05:39]} exf6 {[%clk
01:23:05]} {[%emt 00:01:21]} 14. Bb3 {[%clk 01:04:58]} {[%emt 00:01:32]} Ba6
{[%clk 01:15:33]} {[%emt 00:08:02]} 15. Qd4 {[%clk 00:56:17]} {[%emt 00:09:10]}
Bg7 {[%clk 01:15:18]} {[%emt 00:00:46]} 16. Kf2 {[%clk 00:51:43]} {[%emt
00:05:05]} f5 {[%clk 00:28:03]} {[%emt 00:47:45]} 17. Qxd6 {[%clk 00:49:53]}
{[%emt 00:02:19]} b4 {[%clk 00:22:06]} {[%emt 00:06:27]} 18. Rd5 {[%clk
00:20:20]} {[%emt 00:30:03]} Qb6+ {[%clk 00:21:06]} {[%emt 00:01:31]} 19. Qxb6
{[%clk 00:20:42]} {[%emt 00:00:07]} axb6 {[%clk 00:21:31]} {[%emt 00:00:05]} 20.
Na4 {[%clk 00:19:24]} {[%emt 00:01:48]} fxe4 {[%clk 00:21:31]} {[%emt
00:00:30]} 21. fxe4 {[%clk 00:14:43]} {[%emt 00:05:11]} b5 {[%clk 00:18:17]}
{[%emt 00:03:45]} 22. Nc5 {[%clk 00:13:27]} {[%emt 00:01:45]} Bxb2 {[%clk
00:18:10]} {[%emt 00:00:38]} 23. Rd6 {[%clk 00:13:09]} {[%emt 00:00:47]} Bc8
{[%clk 00:16:19]} {[%emt 00:02:22]} 24. Rxg6+ {[%clk 00:12:53]} {[%emt
00:00:45]} Kh7 {[%clk 00:16:36]} {[%emt 00:00:14]} 25. Rd6 {[%clk 00:12:26]}
{[%emt 00:00:56]} f5 {[%clk 00:16:19]} {[%emt 00:00:47]} 26. Rhd1 {[%clk
00:06:02]} {[%emt 00:06:54]} fxe4+ {[%clk 00:15:53]} {[%emt 00:00:56]} 27. Ke3
{[%clk 00:06:21]} {[%emt 00:00:11]} Be5 {[%clk 00:13:54]} {[%emt 00:02:29]} 28.
R6d5 {[%clk 00:06:31]} {[%emt 00:00:19]} Bg4 {[%clk 00:13:40]} {[%emt
00:00:44]} 29. Re1 {[%clk 00:04:34]} {[%emt 00:02:28]} Bxh2 {[%clk 00:11:21]}
{[%emt 00:02:49]} 30. Nxe4 {[%clk 00:04:45]} {[%emt 00:00:18]} Bg3 {[%clk
00:09:27]} {[%emt 00:02:26]} 31. Nxg3 {[%clk 00:04:30]} {[%emt 00:00:43]} Rae8+
{[%clk 00:09:14]} {[%emt 00:00:44]} 32. Ne4 {[%clk 00:04:19]} {[%emt 00:00:40]}
1-0

[Event "The Kvibergspelen 2024"]
[Site "Kviberg Park Hotel & Conference, Krutvagen 2, Gothenburg, Sweden"]
[Date "2024.09.08"]
[Round "7.20"]
[White "Svensson, Leif"]
[Black "Berling, Egil"]
[Result "1/2-1/2"]
[TimeControl "15 minutes + 5 seconds per move from move one (Round 1 - 4) / 90 minutes + 30 seconds per move from move one (Round 5 - 8)"]
[WhiteFideId "1702459"]
[BlackFideId "1781197"]
[WhiteElo "1990"]
[BlackElo "1837"]

1. d4 {[%clk 01:30:57]} {[%emt 00:00:02]} d5 {[%clk 01:30:53]} {[%emt
00:00:07]} 2. Nc3 {[%clk 01:31:22]} {[%emt 00:00:05]} Nf6 {[%clk 01:31:16]}
{[%emt 00:00:07]} 3. Bf4 {[%clk 01:31:47]} {[%emt 00:00:06]} c5 {[%clk
01:31:30]} {[%emt 00:00:16]} 4. e3 {[%clk 01:31:56]} {[%emt 00:00:21]} cxd4
{[%clk 01:31:54]} {[%emt 00:00:07]} 5. exd4 {[%clk 01:32:20]} {[%emt 00:00:06]}
Bg4 {[%clk 01:32:06]} {[%emt 00:00:18]} 6. f3 {[%clk 01:30:08]} {[%emt
00:02:41]} Bd7 {[%clk 01:32:29]} {[%emt 00:00:06]} 7. g4 {[%clk 01:29:08]}
{[%emt 00:01:30]} h6 {[%clk 01:24:51]} {[%emt 00:08:09]} 8. h4 {[%clk
01:29:22]} {[%emt 00:00:15]} Nc6 {[%clk 01:23:47]} {[%emt 00:01:35]} 9. Qd2
{[%clk 01:29:36]} {[%emt 00:00:14]} Qb6 {[%clk 01:20:16]} {[%emt 00:04:02]} 10.
O-O-O {[%clk 01:20:46]} {[%emt 00:09:20]} e6 {[%clk 01:15:05]} {[%emt
00:05:42]} 11. Nge2 {[%clk 01:12:45]} {[%emt 00:08:30]} Rc8 {[%clk 01:09:45]}
{[%emt 00:05:51]} 12. Ng3 {[%clk 01:00:35]} {[%emt 00:12:40]} Bb4 {[%clk
00:58:40]} {[%emt 00:11:35]} 13. a3 {[%clk 00:55:10]} {[%emt 00:05:55]} Bxc3
{[%clk 00:47:37]} {[%emt 00:11:33]} 14. Qxc3 {[%clk 00:54:54]} {[%emt
00:00:46]} Na5 {[%clk 00:47:52]} {[%emt 00:00:15]} 15. Qb4 {[%clk 00:51:35]}
{[%emt 00:03:47]} Nc4 {[%clk 00:43:44]} {[%emt 00:04:40]} 16. Bxc4 {[%clk
00:51:04]} {[%emt 00:01:00]} Qxb4 {[%clk 00:44:04]} {[%emt 00:00:12]} 17. axb4
{[%clk 00:51:28]} {[%emt 00:00:05]} dxc4 {[%clk 00:44:04]} {[%emt 00:00:29]} 18.
Ne4 {[%clk 00:43:45]} {[%emt 00:08:14]} Nxe4 {[%clk 00:40:09]} {[%emt
00:04:25]} 19. fxe4 {[%clk 00:44:09]} {[%emt 00:00:06]} Ke7 {[%clk 00:38:45]}
{[%emt 00:01:54]} 20. g5 hxg5 21. hxg5 {[%clk 00:39:05]} {[%emt 00:00:04]} Bc6
{[%clk 00:38:27]} {[%emt 00:00:42]} 22. Rxh8 {[%clk 00:38:11]} {[%emt
00:01:23]} Rxh8 {[%clk 00:38:52]} {[%emt 00:00:04]} 23. d5 {[%clk 00:38:35]}
Bb5 {[%clk 00:38:32]} {[%emt 00:00:57]} 24. dxe6 {[%clk 00:35:57]} {[%emt
00:03:09]} Kxe6 {[%clk 00:37:12]} {[%emt 00:01:49]} 1/2-1/2

[Event "The Kvibergspelen 2024"]
[Site "Kviberg Park Hotel & Conference, Krutvagen 2, Gothenburg, Sweden"]
[Date "2024.09.08"]
[Round "7.21"]
[White "Frisk, Hans"]
[Black "Thomasson, Staffan"]
[Result "1-0"]
[TimeControl "15 minutes + 5 seconds per move from move one (Round 1 - 4) / 90 minutes + 30 seconds per move from move one (Round 5 - 8)"]
[WhiteFideId "1708570"]
[BlackFideId "1706284"]
[WhiteElo "1994"]
[BlackElo "1877"]

1. Nf3 {[%emt 00:00:18]} Nf6 {[%clk 01:30:02]} {[%emt 00:00:56]} 2. g3 {[%clk
01:30:42]} {[%emt 00:00:33]} c5 {[%clk 01:29:25]} {[%emt 00:01:08]} 3. c4
{[%clk 01:29:37]} {[%emt 00:01:35]} d5 {[%clk 01:29:27]} {[%emt 00:00:27]} 4.
Bg2 {[%clk 01:26:12]} {[%emt 00:03:55]} Nc6 {[%clk 01:27:48]} {[%emt 00:02:10]}
5. O-O {[%clk 01:23:45]} {[%emt 00:02:55]} e5 {[%clk 01:24:24]} {[%emt
00:03:55]} 6. cxd5 {[%clk 01:22:05]} {[%emt 00:02:10]} Nxd5 {[%clk 01:24:45]}
{[%emt 00:00:09]} 7. d3 {[%clk 01:21:07]} {[%emt 00:01:28]} Be7 {[%clk
01:24:08]} {[%emt 00:01:06]} 8. Nc3 {[%clk 01:19:21]} {[%emt 00:02:17]} Nc7
{[%clk 01:23:35]} {[%emt 00:01:03]} 9. a3 {[%clk 01:13:48]} O-O {[%clk
01:22:21]} {[%emt 00:07:33]} 10. Qc2 {[%clk 01:13:04]} Rb8 {[%clk 01:17:10]}
{[%emt 00:07:09]} 11. Ne4 {[%clk 01:05:04]} Ne6 {[%clk 01:12:32]} {[%emt
00:13:38]} 12. Be3 {[%clk 00:58:09]} b6 {[%clk 01:09:14]} {[%emt 00:11:13]} 13.
b4 {[%clk 00:55:05]} f5 {[%clk 01:07:34]} {[%emt 00:05:43]} 14. Neg5 {[%clk
00:50:40]} Nxg5 {[%clk 00:58:17]} {[%emt 00:14:43]} 15. Nxg5 {[%clk 00:49:57]}
Bxg5 {[%clk 00:58:12]} {[%emt 00:01:47]} 16. Bxg5 {[%clk 00:48:39]} Qxg5 {[%clk
00:57:57]} {[%emt 00:02:35]} 17. Bxc6 {[%clk 00:48:59]} Rf6 {[%clk 00:48:06]}
{[%emt 00:10:29]} 18. Bd5+ {[%clk 00:45:07]} Be6 {[%clk 00:35:03]} {[%emt
00:17:56]} 19. Qc4 {[%clk 00:37:58]} Qg6 {[%clk 00:32:06]} {[%emt 00:11:05]} 20.
bxc5 {[%clk 00:33:13]} Rc8 {[%clk 00:31:33]} {[%emt 00:06:19]} 21. c6 {[%clk
00:32:26]} Kh8 {[%clk 00:30:21]} {[%emt 00:02:59]} 22. Rac1 {[%clk 00:28:59]}
h5 {[%clk 00:26:42]} {[%emt 00:08:06]} 23. Bxe6 {[%clk 00:25:02]} Rxe6 {[%clk
00:27:10]} {[%emt 00:04:29]} 24. c7 {[%clk 00:24:54]} Qf7 {[%clk 00:20:31]}
{[%emt 00:07:46]} 25. Rc2 {[%clk 00:23:03]} Re7 {[%clk 00:18:16]} {[%emt
00:05:07]} 26. Qxf7 {[%clk 00:21:22]} Rxf7 {[%clk 00:18:44]} {[%emt 00:02:12]}
27. Rfc1 {[%clk 00:21:41]} a5 {[%clk 00:14:15]} {[%emt 00:05:11]} 28. Rc6
{[%clk 00:19:37]} b5 {[%clk 00:14:42]} {[%emt 00:02:36]} 29. R6c5 {[%clk
00:18:33]} b4 {[%clk 00:14:31]} {[%emt 00:02:16]} 30. axb4 {[%clk 00:17:02]}
{[%emt 00:02:02]} axb4 {[%clk 00:14:48]} {[%emt 00:00:12]} 31. Rxe5 {[%clk
00:16:21]} {[%emt 00:01:10]} Rfxc7 {[%clk 00:14:35]} {[%emt 00:00:44]} 32. Rxc7
{[%clk 00:16:04]} {[%emt 00:00:47]} Rxc7 {[%clk 00:15:04]} {[%emt 00:00:01]} 33.
Rxf5 {[%clk 00:15:37]} {[%emt 00:00:56]} g6 {[%clk 00:12:30]} {[%emt 00:03:04]}
34. Rb5 {[%clk 00:15:54]} {[%emt 00:00:12]} Rc1+ {[%clk 00:12:58]} {[%emt
00:00:03]} 35. Kg2 {[%clk 00:16:14]} {[%emt 00:00:09]} Rb1 {[%clk 00:13:22]}
{[%emt 00:00:06]} 36. h4 {[%clk 00:14:46]} {[%emt 00:01:58]} Kg7 {[%clk
00:13:43]} {[%emt 00:00:09]} 37. Rb6 {[%clk 00:15:01]} {[%emt 00:00:15]} b3
{[%clk 00:13:44]} {[%emt 00:00:29]} 38. Kf3 {[%clk 00:13:50]} {[%emt 00:01:41]}
b2 {[%clk 00:13:29]} {[%emt 00:00:46]} 39. Ke3 {[%clk 00:14:08]} {[%emt
00:00:11]} Kf7 {[%clk 00:13:45]} {[%emt 00:00:15]} 40. f3 {[%clk 00:14:29]}
{[%emt 00:00:09]} Ke7 {[%clk 00:14:02]} {[%emt 00:00:12]} 41. Kf4 {[%clk
00:10:46]} {[%emt 00:04:12]} Kd7 {[%clk 00:11:38]} {[%emt 00:02:57]} 42. Kg5
{[%clk 00:08:00]} {[%emt 00:03:15]} Kc7 {[%clk 00:12:01]} {[%emt 00:00:06]} 43.
Rb3 {[%clk 00:08:15]} {[%emt 00:00:16]} Rg1 {[%clk 00:12:13]} {[%emt 00:00:17]}
44. Rxb2 {[%clk 00:08:33]} {[%emt 00:00:13]} Rxg3+ {[%clk 00:12:38]} {[%emt
00:00:05]} 45. Kf6 {[%clk 00:08:45]} {[%emt 00:00:17]} Kd6 {[%clk 00:12:30]}
{[%emt 00:00:38]} 46. Rb5 {[%clk 00:07:55]} {[%emt 00:01:20]} Rg2 {[%clk
00:12:17]} {[%emt 00:00:44]} 47. Re5 {[%clk 00:07:31]} {[%emt 00:00:52]} Rh2
{[%clk 00:12:01]} {[%emt 00:00:48]} 48. Re4 {[%clk 00:06:22]} {[%emt 00:01:39]}
Rg2 {[%clk 00:12:23]} {[%emt 00:00:08]} 49. f4 {[%clk 00:06:06]} {[%emt
00:00:45]} Rg4 {[%clk 00:09:56]} {[%emt 00:02:57]} 50. f5 {[%clk 00:06:01]}
{[%emt 00:00:35]} g5 {[%clk 00:09:45]} {[%emt 00:00:42]} 51. Re6+ {[%clk
00:02:47]} {[%emt 00:03:43]} Kd5 {[%clk 00:09:42]} {[%emt 00:00:33]} 52. hxg5
{[%clk 00:03:01]} {[%emt 00:00:16]} h4 {[%clk 00:10:04]} {[%emt 00:00:09]} 53.
Re4 {[%clk 00:02:11]} {[%emt 00:01:20]} Rxe4 {[%clk 00:10:00]} {[%emt
00:00:34]} 54. dxe4+ {[%clk 00:02:39]} {[%emt 00:00:01]} Kxe4 {[%clk 00:10:16]}
{[%emt 00:00:14]} 55. g6 {[%clk 00:03:02]} {[%emt 00:00:07]} h3 {[%clk
00:10:40]} {[%emt 00:00:07]} 56. g7 {[%clk 00:03:25]} {[%emt 00:00:06]} h2
{[%clk 00:11:07]} {[%emt 00:00:04]} 57. g8=Q {[%clk 00:03:47]} {[%emt
00:00:08]} h1=Q {[%emt 00:00:07]} 58. Qa8+ {[%emt 00:00:08]} 1-0

[Event "The Kvibergspelen 2024"]
[Site "Kviberg Park Hotel & Conference, Krutvagen 2, Gothenburg, Sweden"]
[Date "2024.09.08"]
[Round "8.1"]
[White "Kucuksari, Kaan"]
[Black "Ernst, Thomas"]
[Result "1/2-1/2"]
[TimeControl "15 minutes + 5 seconds per move from move one (Round 1 - 4) / 90 minutes + 30 seconds per move from move one (Round 5 - 8)"]
[WhiteTitle "IM"]
[BlackTitle "GM"]
[WhiteFideId "6380166"]
[BlackFideId "1700065"]
[WhiteElo "2455"]
[BlackElo "2261"]

1. d4 {[%clk 01:30:54]} {[%emt 00:00:06]} Nf6 {[%clk 01:30:48]} {[%emt
00:00:12]} 2. c4 {[%clk 01:31:20]} {[%emt 00:00:04]} e6 {[%clk 01:31:08]}
{[%emt 00:00:10]} 3. Nf3 {[%clk 01:31:44]} {[%emt 00:00:06]} d5 {[%clk
01:31:19]} {[%emt 00:00:18]} 4. g3 {[%clk 01:32:08]} {[%emt 00:00:07]} dxc4
{[%clk 01:31:17]} {[%emt 00:00:32]} 5. Bg2 {[%clk 01:32:32]} {[%emt 00:00:07]}
Nc6 {[%clk 01:31:20]} {[%emt 00:00:26]} 6. Qa4 {[%clk 01:32:50]} {[%emt
00:00:11]} Bb4+ {[%clk 01:31:40]} {[%emt 00:00:10]} 7. Bd2 {[%clk 01:33:13]}
{[%emt 00:00:08]} Nd5 {[%clk 01:31:58]} {[%emt 00:00:12]} 8. Bxb4 {[%clk
01:27:23]} {[%emt 00:06:20]} Ndxb4 {[%clk 01:32:22]} {[%emt 00:00:06]} 9. O-O
{[%clk 01:27:05]} {[%emt 00:00:49]} Rb8 {[%clk 01:24:46]} {[%emt 00:08:06]} 10.
Nc3 {[%clk 01:25:12]} {[%emt 00:02:23]} a6 {[%clk 01:23:54]} {[%emt 00:01:21]}
11. Ne5 {[%clk 01:25:19]} {[%emt 00:00:23]} O-O {[%clk 01:23:25]} {[%emt
00:00:59]} 12. Nxc6 {[%clk 01:25:15]} {[%emt 00:00:34]} Nxc6 {[%clk 01:23:38]}
{[%emt 00:00:17]} 13. Bxc6 {[%clk 01:25:37]} {[%emt 00:00:08]} bxc6 {[%clk
01:24:03]} {[%emt 00:00:05]} 14. Qxc4 {[%clk 01:25:36]} {[%emt 00:00:31]} Rxb2
{[%clk 01:24:08]} {[%emt 00:00:25]} 15. Rab1 {[%clk 01:24:59]} {[%emt
00:01:07]} Rb6 {[%clk 01:23:53]} {[%emt 00:00:44]} 16. Qc5 {[%clk 01:22:24]}
{[%emt 00:03:07]} h6 {[%clk 01:21:56]} {[%emt 00:02:26]} 17. e3 {[%clk
01:22:38]} {[%emt 00:00:16]} Re8 {[%clk 01:17:36]} {[%emt 00:04:49]} 18. a4
{[%clk 01:22:18]} {[%emt 00:00:51]} e5 {[%clk 01:10:23]} {[%emt 00:07:42]} 19.
dxe5 {[%clk 01:21:06]} {[%emt 00:01:43]} Qe7 {[%clk 01:10:23]} {[%emt
00:00:30]} 20. Qxe7 {[%clk 01:19:58]} {[%emt 00:01:37]} Rxe7 {[%clk 01:10:48]}
{[%emt 00:00:06]} 21. f4 {[%clk 01:19:09]} {[%emt 00:01:19]} f6 {[%clk
01:09:32]} {[%emt 00:01:45]} 22. exf6 {[%clk 00:52:01]} {[%emt 00:27:40]} Rxe3
{[%clk 01:09:41]} 23. Rbe1 {[%clk 00:52:06]} {[%emt 00:00:45]} Rxe1 {[%clk
01:01:26]} {[%emt 00:08:45]} 24. Rxe1 {[%clk 00:52:33]} {[%emt 00:00:03]} Bf5
{[%clk 01:01:21]} {[%emt 00:00:34]} 25. Re8+ {[%clk 00:50:26]} {[%emt
00:02:37]} Kf7 {[%clk 01:01:43]} {[%emt 00:00:08]} 26. fxg7 {[%clk 00:50:48]}
{[%emt 00:00:09]} Kxg7 {[%clk 01:02:03]} {[%emt 00:00:10]} 27. Re7+ {[%clk
00:51:05]} {[%emt 00:00:13]} Kf6 {[%clk 00:59:35]} {[%emt 00:02:55]} 28. Rxc7
{[%clk 00:51:21]} {[%emt 00:00:17]} a5 {[%clk 00:59:53]} {[%emt 00:00:12]} 29.
Kf2 {[%clk 00:48:26]} {[%emt 00:03:25]} Ke6 {[%clk 00:55:58]} {[%emt 00:04:25]}
30. Ke3 {[%clk 00:41:28]} {[%emt 00:07:28]} Kd6 {[%clk 00:52:14]} {[%emt
00:04:13]} 31. Rf7 {[%clk 00:41:32]} {[%emt 00:00:27]} Ke6 {[%clk 00:52:20]}
{[%emt 00:00:23]} 32. Rc7 {[%clk 00:26:41]} {[%emt 00:15:22]} Kd6 {[%clk
00:52:35]} {[%emt 00:00:15]} 33. Rf7 {[%clk 00:26:00]} {[%emt 00:01:11]} Ke6
{[%clk 00:52:53]} {[%emt 00:00:12]} 34. Ra7 {[%clk 00:26:24]} {[%emt 00:00:05]}
Rb3 {[%clk 00:53:11]} {[%emt 00:00:12]} 35. Kd4 {[%clk 00:19:57]} {[%emt
00:06:58]} Rb4+ {[%clk 00:53:10]} {[%emt 00:00:30]} 36. Kc5 {[%clk 00:20:11]}
{[%emt 00:00:17]} Bd3 {[%clk 00:53:18]} {[%emt 00:00:22]} 37. Nd1 {[%clk
00:20:24]} {[%emt 00:00:17]} Be2 {[%clk 00:48:05]} {[%emt 00:05:42]} 38. Nf2
{[%clk 00:16:07]} {[%emt 00:04:48]} Rxa4 {[%clk 00:46:33]} {[%emt 00:02:01]} 39.
Kxc6 {[%clk 00:16:12]} {[%emt 00:00:26]} Rc4+ {[%clk 00:42:57]} {[%emt
00:04:05]} 40. Kb6 {[%clk 00:16:39]} {[%emt 00:00:04]} a4 {[%clk 00:43:10]}
{[%emt 00:00:16]} 41. Ra5 {[%clk 00:16:12]} {[%emt 00:00:59]} Kf7 {[%clk
00:40:32]} {[%emt 00:03:06]} 42. Re5 {[%clk 00:15:24]} {[%emt 00:01:18]} Rc2
{[%clk 00:40:49]} {[%emt 00:00:13]} 43. Re3 {[%clk 00:07:14]} {[%emt 00:08:41]}
Bh5 {[%clk 00:26:08]} {[%emt 00:15:09]} 44. Nd3 {[%clk 00:07:05]} {[%emt
00:00:40]} Kf6 {[%clk 00:25:38]} {[%emt 00:00:59]} 45. Nc5 {[%clk 00:04:26]}
{[%emt 00:03:11]} Rxh2 {[%clk 00:24:58]} {[%emt 00:01:09]} 46. Nxa4 {[%clk
00:04:52]} {[%emt 00:00:05]} Re2 {[%clk 00:21:12]} {[%emt 00:04:13]} 47. Rxe2
{[%clk 00:01:40]} {[%emt 00:03:45]} Bxe2 {[%clk 00:21:35]} {[%emt 00:00:06]} 48.
Nc3 {[%clk 00:01:15]} {[%emt 00:00:55]} Bf3 {[%clk 00:21:03]} {[%emt 00:01:01]}
49. Nb5 {[%clk 00:00:53]} {[%emt 00:00:53]} Bh1 {[%clk 00:18:06]} {[%emt
00:03:27]} 50. Nd4 {[%clk 00:01:12]} {[%emt 00:00:11]} Bd5 {[%clk 00:17:04]}
{[%emt 00:01:32]} 51. Kc5 {[%clk 00:01:41]} {[%emt 00:00:03]} Ba2 {[%clk
00:17:14]} {[%emt 00:00:17]} 52. Kd6 {[%clk 00:00:40]} {[%emt 00:01:33]} Bc4
{[%clk 00:15:37]} {[%emt 00:02:06]} 53. Nc2 {[%clk 00:01:07]} {[%emt 00:00:03]}
h5 {[%clk 00:11:39]} {[%emt 00:04:27]} 54. Ne3 {[%clk 00:01:22]} {[%emt
00:00:16]} Be6 {[%clk 00:11:58]} {[%emt 00:00:11]} 55. Kc5 {[%clk 00:01:11]}
{[%emt 00:00:41]} Bc8 {[%clk 00:10:20]} {[%emt 00:02:06]} 56. Kd4 {[%clk
00:00:45]} {[%emt 00:00:59]} Bb7 {[%clk 00:10:29]} {[%emt 00:00:19]} 57. Kd3
{[%clk 00:00:52]} {[%emt 00:00:24]} Ba6+ {[%clk 00:10:09]} {[%emt 00:00:50]} 58.
Kd2 {[%clk 00:01:04]} {[%emt 00:00:19]} Bb7 {[%clk 00:10:00]} {[%emt 00:00:38]}
59. Ke2 {[%clk 00:01:22]} {[%emt 00:00:12]} Bc6 {[%clk 00:10:00]} {[%emt
00:00:28]} 60. Kf2 {[%clk 00:01:12]} {[%emt 00:00:42]} Kg6 {[%clk 00:09:07]}
{[%emt 00:01:22]} 61. Nc2 {[%clk 00:00:44]} {[%emt 00:00:59]} Bb7 {[%clk
00:08:51]} {[%emt 00:00:44]} 62. Nd4 {[%clk 00:01:13]} {[%emt 00:00:04]} Bd5
{[%clk 00:08:29]} {[%emt 00:00:50]} 63. Kg1 {[%clk 00:00:54]} {[%emt 00:00:51]}
Bb7 {[%clk 00:08:34]} {[%emt 00:00:23]} 64. Kh2 {[%clk 00:01:17]} {[%emt
00:00:08]} Bc8 {[%clk 00:08:56]} {[%emt 00:00:08]} 65. Kg2 {[%clk 00:01:44]}
{[%emt 00:00:04]} Kf6 {[%clk 00:08:37]} {[%emt 00:00:47]} 66. Nb5 {[%clk
00:02:10]} {[%emt 00:00:06]} Bd7 {[%clk 00:07:55]} {[%emt 00:01:11]} 67. Nd6
{[%clk 00:01:44]} {[%emt 00:00:57]} Ke6 {[%clk 00:07:53]} {[%emt 00:00:29]} 68.
Nc4 {[%clk 00:02:08]} {[%emt 00:00:09]} Kf6 {[%clk 00:08:08]} {[%emt 00:00:13]}
69. Kf3 {[%clk 00:02:00]} {[%emt 00:00:38]} Bc6+ {[%clk 00:08:10]} {[%emt
00:00:28]} 70. Kf2 {[%clk 00:01:47]} {[%emt 00:00:44]} Bd5 {[%clk 00:08:15]}
{[%emt 00:00:24]} 71. Nd6 {[%clk 00:01:44]} {[%emt 00:00:33]} Bc6 {[%clk
00:08:15]} {[%emt 00:00:29]} 72. Ke3 {[%clk 00:01:18]} {[%emt 00:00:58]} Ke6
{[%clk 00:08:07]} {[%emt 00:00:35]} 73. Nc4 {[%clk 00:00:41]} {[%emt 00:01:11]}
Kf5 {[%clk 00:08:17]} {[%emt 00:00:17]} 74. Ne5 {[%clk 00:00:40]} {[%emt
00:00:34]} Ba8 {[%clk 00:08:20]} {[%emt 00:00:24]} 75. Nc4 {[%clk 00:00:37]}
{[%emt 00:00:35]} h4 {[%clk 00:06:42]} {[%emt 00:02:07]} 76. gxh4 {[%clk
00:01:04]} {[%emt 00:00:04]} Kg4 {[%clk 00:07:06]} {[%emt 00:00:06]} 77. Nd6
{[%clk 00:01:30]} {[%emt 00:00:06]} Kxh4 {[%clk 00:07:18]} {[%emt 00:00:17]} 78.
Kd4 {[%clk 00:01:59]} Kh5 {[%clk 00:07:05]} {[%emt 00:00:41]} 79. f5 {[%clk
00:02:27]} {[%emt 00:00:03]} Kh6 {[%clk 00:06:51]} {[%emt 00:00:43]} 80. f6
{[%clk 00:02:56]} {[%emt 00:00:03]} Kh7 {[%clk 00:07:02]} {[%emt 00:00:16]} 81.
Ke5 {[%clk 00:01:52]} {[%emt 00:01:37]} Kg8 {[%clk 00:07:20]} {[%emt 00:00:10]}
82. Nf5 {[%clk 00:00:41]} {[%emt 00:01:43]} Kf7 {[%clk 00:06:53]} {[%emt
00:00:53]} 83. Nh6+ {[%clk 00:01:05]} {[%emt 00:00:09]} Kf8 {[%clk 00:07:15]}
{[%emt 00:00:07]} 84. Nf5 {[%clk 00:00:41]} {[%emt 00:00:56]} Bb7 {[%clk
00:07:18]} {[%emt 00:00:18]} 85. Nd4 {[%clk 00:01:05]} {[%emt 00:00:15]} Ba6
{[%clk 00:04:20]} {[%emt 00:25:24]} 86. Ne6+ {[%clk 00:00:34]} {[%emt
00:02:01]} Kf7 {[%clk 00:04:33]} {[%emt 00:06:08]} 87. Ng5+ {[%clk 00:01:01]}
{[%emt 00:00:06]} Kf8 {[%clk 00:04:39]} {[%emt 00:00:23]} 88. Ne4 {[%clk
00:00:53]} {[%emt 00:00:41]} Bc4 {[%clk 00:04:49]} {[%emt 00:00:15]} 89. Nd6
{[%clk 00:01:13]} {[%emt 00:00:14]} Ba2 {[%clk 00:05:05]} {[%emt 00:00:12]} 90.
Kf5 {[%clk 00:01:36]} {[%emt 00:00:08]} Bb1+ {[%clk 00:05:20]} {[%emt
00:00:15]} 91. Kg5 {[%clk 00:02:00]} {[%emt 00:00:07]} Ba2 {[%clk 00:05:35]}
{[%emt 00:00:13]} 92. Nf5 {[%clk 00:01:35]} {[%emt 00:00:57]} Bb3 {[%clk
00:05:49]} {[%emt 00:00:15]} 93. Ne7 {[%clk 00:02:02]} {[%emt 00:00:03]} Ba2
{[%clk 00:05:56]} {[%emt 00:00:23]} 94. Ng6+ {[%clk 00:02:28]} {[%emt
00:00:04]} Kf7 {[%clk 00:06:17]} {[%emt 00:00:08]} 95. Ne5+ {[%clk 00:02:55]}
{[%emt 00:00:04]} Kf8 {[%clk 00:06:40]} {[%emt 00:00:07]} 96. Kf4 {[%clk
00:01:43]} {[%emt 00:01:42]} Bb3 {[%clk 00:06:54]} {[%emt 00:00:13]} 97. Nf3
{[%clk 00:01:35]} {[%emt 00:00:42]} Ba2 {[%clk 00:07:11]} {[%emt 00:00:11]} 98.
Kf5 {[%clk 00:02:01]} {[%emt 00:00:06]} Bb1+ {[%clk 00:07:33]} {[%emt
00:00:07]} 99. Ke5 {[%clk 00:01:53]} {[%emt 00:00:39]} Ba2 {[%clk 00:07:53]}
{[%emt 00:00:09]} 100. Nd2 {[%clk 00:01:50]} {[%emt 00:00:34]} Kf7 {[%clk
00:07:59]} {[%emt 00:00:23]} 101. Kf5 {[%clk 00:02:17]} {[%emt 00:00:04]} Kf8
{[%clk 00:08:17]} {[%emt 00:00:11]} 102. Kg6 {[%clk 00:02:42]} {[%emt
00:00:06]} Bf7+ {[%clk 00:08:40]} {[%emt 00:00:07]} 103. Kg5 {[%clk 00:03:08]}
{[%emt 00:00:04]} Ba2 {[%clk 00:09:01]} {[%emt 00:00:09]} 104. Nf3 {[%clk
00:03:34]} {[%emt 00:00:04]} Bb1 {[%clk 00:09:16]} {[%emt 00:00:13]} 105. Ne5
{[%clk 00:04:00]} {[%emt 00:00:06]} Ba2 {[%clk 00:09:34]} {[%emt 00:00:12]} 106.
Kh6 {[%clk 00:01:05]} {[%emt 00:03:25]} Bb3 {[%clk 00:09:49]} {[%emt 00:00:13]}
107. Kg6 {[%clk 00:01:23]} {[%emt 00:00:14]} 1/2-1/2